Cogmind - Beta 14 @@@ ROGUE MODE // 2024.09.28 @ 17:48:31 Player: Corvi Result: Destroyed by G-47 Trooper with Particle Gun Performance ------------- Evolutions (0) 0 Regions Visited (1) 200 Robots Destroyed (16) 80 Value Destroyed (326) 326 Prototype IDs (0) 0 Alien Tech Used (0) 0 Bonus (0) 0 TOTAL SCORE: 606 Bonus ------- None Cogmind --------- Core Integrity 0/250 Matter 265/300 Energy 100/100 System Corruption 0% Temperature Cool (9) Movement Rolling (90) Location -10/Materials Parts ------- > --- POWER (1) -------- (None) > --- PROPULSION (2) --- Wheel Compact Wheel > --- UTILITY (2) ------ Large Storage Unit Visual Processing Unit > --- WEAPON (2) ------- Light Assault Rifle > --- INVENTORY (15) --- Light Ion Engine Light Nuclear Core Hover Unit Hover Unit Hover Unit Small Storage Unit Signal Interpreter Peak State ------------ > --- POWER ------------ Light Ion Engine > --- PROPULSION ------- Light Treads Light Treads > --- UTILITY ---------- Large Storage Unit Visual Processing Unit > --- WEAPON ----------- Light Assault Rifle Light Assault Rifle > --- INVENTORY -------- Light Ion Engine Light Nuclear Core Wheel Compact Wheel Hover Unit Hover Unit Hover Unit Small Storage Unit Signal Interpreter Light Assault Rifle [Rating: 9] Favorites ----------- Power Light Ion Engine Engine Light Ion Engine Propulsion Light Treads Treads Light Treads Wheel Compact Wheel Utility Visual Processing Unit Storage Large Storage Unit Processor Visual Processing Unit Weapon Light Assault Rifle Energy Gun EM Pulse Gun Ballistic Gun Light Assault Rifle Build | -11 -10 ------- Run | Yrd Mat Slots Evolved . | . . Power . | . . Propulsion . | . . Utility . | . . Weapon . | . . Parts Attached 24 | 7 17 Power 4 | 2 2 Engine 4 | 2 2 Core . | . . Reactor . | . . Propulsion 7 | 2 5 Treads 5 | 2 3 Leg . | . . Wheel 2 | . 2 Hover . | . . Flight . | . . Utility 3 | 1 2 Device . | . . Storage 2 | 1 1 Processor 1 | . 1 Hackware . | . . Protection . | . . Artifact . | . . Weapon 10 | 2 8 Energy Gun 3 | 1 2 Energy Cannon . | . . Ballistic Gun 7 | 1 6 Ballistic Cannon . | . . Launcher . | . . Special Weapon . | . . Impact Weapon . | . . Slashing Weapon . | . . Piercing Weapon . | . . Special Melee Weapon . | . . Unidentified Prototypes . | . . Parts Lost 6 | . 6 Power 1 | . 1 Propulsion 2 | . 2 Utility . | . . Weapon 3 | . 3 Highest Loss Streak 5 | . 5 To Critical Strikes . | . . Average Slot Usage (%) 92 | . 92 Engine 13 | . 13 Treads 26 | . 26 Storage 14 | . 14 Processor 9 | . 9 Energy Gun 3 | . 3 Ballistic Gun 22 | . 22 Peak Build Rating 9 | 6 9 Average Rating 7 | 4 7 On Entrance 3 | . 6 Naked Turns . | . . Heaviest Build 26 | 14 26 Greatest Support 40 | 40 40 Greatest Overweight (x) 6 | . 6 Average Overweight (x) . | . . Largest Inventory Capacity 15 | 8 15 Average Capacity 11 | 6 12 Most Carried 10 | 4 10 Average Carried 7 | 2 8 Final Capacity 15 | 8 15 Final Carried 7 | 4 7 Class Distribution -------------------- 100% | Mutant Dominant Class ---------------- Mutant | -10/Materials Resources | -11 -10 ----------- Run | Yrd Mat Matter Collected 576 | 270 306 Remotely . | . . Salvage Created 451 | . 451 Parts 44 | . 44 Haulers Intercepted . | . . Recyclers Shooed . | . . Parts Field Recycled . | . . Retrieved Matter . | . . Parts Self-Destructed . | . . Prevented . | . . Kills | -11 -10 ------- Run | Yrd Mat Combat Hostiles Destroyed 12 | . 12 Guns 11 | . 11 AOE 1 | . 1 Classes Destroyed 5 | . 5 Worker 1 | . 1 Operator 1 | . 1 Watcher 2 | . 2 Swarmer 6 | . 6 Grunt 6 | . 6 Best Kill Streak 3 | . 3 Combat Bots Only 3 | . 3 Max Kills in Single Turn 1 | . 1 Gunslinging . | . . Exploded 1 | . 1 Melee . | . . Uniques/NPCs Destroyed . | . . Combat | -11 -10 -------- Run | Yrd Mat Hostile Shots Fired 118 | . 118 Missed 35 | . 35 Damage Taken 950 | . 950 Core 254 | . 254 Absorbed by Shields . | . . Core Remaining (%) 100 | 100 . Volleys Fired 82 | . 82 Largest 2 | . 2 Hottest 60 | . 60 Shots Fired 157 | . 157 Gun 157 | . 157 Cannon . | . . Launcher . | . . Special . | . . Kinetic 135 | . 135 Thermal . | . . Explosive . | . . Electromagnetic 22 | . 22 Robot Hit Streak 15 | . 15 Robot Miss Streak 7 | . 7 Penetration Max . | . . Secondary Targets 3 | . 3 Max Gunslinging Chain 1 | . 1 Shots Hit Robots 82 | . 82 Core Hits 33 | . 33 Critical Kills . | . . Critical Parts Destroyed . | . . Critical Strikes . | . . Melee Attacks . | . . Impact . | . . Slashing . | . . Piercing . | . . Sneak Attacks . | . . Combat Hostiles . | . . Follow-up Attacks . | . . Damage Inflicted 804 | . 804 Guns 758 | . 758 Cannons . | . . Explosions 34 | . 34 Melee . | . . Ramming 12 | . 12 Kinetic 598 | . 598 Thermal 34 | . 34 Explosive . | . . Electromagnetic 160 | . 160 Impact . | . . Slashing . | . . Piercing . | . . Highest Corruption . | . . Average Corruption . | . . Corruption Purged . | . . Corruption Blocked . | . . Overload Shots . | . . Overflow Damage . | . . Projectiles . | . . Explosions . | . . Melee . | . . Knockbacks . | . . Impact . | . . Kinetic . | . . Secondary . | . . Self-Inflicted Damage . | . . Shots . | . . Rammed 1 | . 1 Targets Rammed 1 | . 1 Kicked . | . . Crushed . | . . Highest Temperature 64 | . 64 Average Temperature 21 | . 21 Received Heat Transfer 462 | . 462 Siege Activations . | . . Robots Corrupted . | . . Combat Hostiles . | . . Parts Fried . | . . Impact Corruptions . | . . Robots Melted . | . . Combat Hostiles . | . . Parts Melted . | . . Heat Transferred 50 | . 50 Parts Sabotaged . | . . Parts Stolen . | . . Parts Stripped . | . . Power Chain Reactions 1 | . 1 Alert | -11 -10 ------- Run | Yrd Mat Peak Influence 265 | . 265 Initial . | . . Average 86 | . 95 Maximum Alert Level 1 | . 1 Low Security (%) 88 | 100 87 Level 1 11 | . 12 Level 2 . | . . Level 3 . | . . Level 4 . | . . Level 5 . | . . High Security . | . . Max Security . | . . Squads Dispatched 2 | . 2 Investigation 1 | . 1 Extermination . | . . Reinforcement 1 | . 1 Assault . | . . Garrison . | . . Intercept . | . . Searches Triggered . | . . Construction Impeded . | . . Haulers Reinforced . | . . Active Scanning Responses . | . . Cargo Convoy Interrupts . | . . Stealth | -11 -10 --------- Run | Yrd Mat Distress Signals 1 | . 1 Communications Jammed . | . . Distress Signals . | . . Times Spotted 28 | . 28 Peak Tracking Total 4 | . 4 Tactical Retreats 3 | . 3 Traps | -11 -10 ------- Run | Yrd Mat Traps Triggered 4 | . 4 Indirectly . | . . Trap Hack Attempts . | . . Triggered . | . . Disarmed . | . . Reprogrammed . | . . Reused . | . . Traps Extracted . | . . Installed . | . . Triggered 1 | . 1 Machines | -11 -10 ---------- Run | Yrd Mat Machines Disabled . | . . Max in Single Turn . | . . Machines Repaired . | . . Machines Dismantled . | . . Machines Sabotaged . | . . Overloaded Fab Kills . | . . Hacking | -11 -10 --------- Run | Yrd Mat Machines Accessed 3 | . 3 Terminals 3 | . 3 Fabricators . | . . Repair Stations . | . . Recycling Units . | . . Scanalyzers . | . . Garrison Access . | . . Total Hacks 6 | . 6 Successful 4 | . 4 Failed 2 | . 2 Catastrophic . | . . Database Lockouts . | . . Manual 4 | . 4 Terminals 6 | . 6 Fabricators . | . . Repair Stations . | . . Recycling Units . | . . Scanalyzers . | . . Garrison Access . | . . Terminal Hacks 2 | . 2 Robot Analysis 1 | . 1 Unreport Threat 1 | . 1 Fabricator Hacks . | . . Repair Station Hacks . | . . Recycling Unit Hacks . | . . Scanalyzer . | . . Garrison Access Hacks . | . . Unauthorized Hacks 2 | . 2 Terminals 2 | . 2 Botnet 1 | . 1 Operators 1 | . 1 Fabricators . | . . Repair Stations . | . . Recycling Units . | . . Scanalyzers . | . . Garrison Access . | . . Data Cores Recovered 1 | . 1 Used . | . . Hacking Detections 2 | . 2 Full Trace Events . | . . Feedback Events . | . . Feedback Blocked . | . . Robot Schematics Acquired . | . . Robots Built . | . . Authchips . | . . Time . | . . Total Robot Build Rating . | . . Part Schematics Acquired . | . . Parts Built . | . . Authchips . | . . Time . | . . Total Part Build Rating . | . . Parts Repaired . | . . Time . | . . Parts Recycled . | . . Recycled Matter . | . . Retrieved Matter . | . . Retrieved Components . | . . Parts Scanalyzed . | . . Part Schematics Acquired . | . . Parts Damaged . | . . Bothacking | -11 -10 ------------ Run | Yrd Mat Used RIF Installer . | . . Robots Hacked . | . . Non-combat . | . . Combat . | . . Robot Hacks Applied . | . . Relay Couplers Released . | . . Fabnet Peak Effective % . | . . Robots Rewired . | . . Allies Hacked . | . . Hacks Repelled . | . . Allies | -11 -10 -------- Run | Yrd Mat Total Allies . | . . Largest Group . | . . Highest-Rated Group . | . . Highest-Rated Ally . | . . Total Orders . | . . Ally Attacks . | . . Total Damage . | . . Kills . | . . Allies Corrupted . | . . Allies Melted . | . . Intel | -11 -10 ------- Run | Yrd Mat Robot Analysis Total 1 | . 1 Derelict Logs Recovered . | . . Drone Launches . | . . Drone Recoveries . | . . Exploration | -11 -10 ------------- Run | Yrd Mat Turns Passed 1232 | 111 1121 Spaces Moved 590 | 67 523 Core 12 | 8 4 Treads 573 | 59 514 Legs . | . . Wheels 5 | . 5 Hover . | . . Flight . | . . Fastest Speed 50 | 50 90 Average Speed 159 | 146 161 Slowest Speed 350 | 160 350 Overloaded Moves . | . . Propulsion Burnouts . | . . Robots Hopped . | . . Cave-ins Triggered . | . . Exploration Rate (%) 33 | 4 62 Regions Visited 1 Branch Regions . Pre-discovered Areas . | . . Known Exits Taken . | . . Unknown Exits Taken 1 | 1 . Scrap Searched . | . . Spaces Dug . | . . Terrain Destroyed 6 | . 6 Melee . | . . Projectile . | . . AOE 6 | . 6 Terrain Rammed . | . . Walls Destroyed . | . . Machines Disabled . | . . Actions | -11 -10 --------- Run | Yrd Mat Total 736 | 77 659 Wait 22 | . 22 Move 589 | 66 523 Hop . | . . Pick Up 12 | 4 8 Fast Attach 16 | 5 11 Attach 4 | 1 3 Detach . | . . Swap 4 | 1 3 Drop 6 | . 6 Fire 82 | . 82 Melee . | . . Ram . | . . Kick . | . . Crush 1 | . 1 Escape Stasis . | . . Rewire . | . . Trap . | . . Miscellaneous . | . . Route ------- -11/Scrapyard -10/Materials (discovered 3 exits: [*Mat x2] / [*Min]) History --------- Turn | Location | Event 9 | -11/Scrapyard | Discovered new exit (range 13) 112 | -11/Scrapyard | Entered Materials 325 | -10/Materials | Build established: Mutant 464 | -10/Materials | Discovered new exit (range 15) 726 | -10/Materials | Discovered new exit (range 18) 839 | -10/Materials | Discovered new exit (range 18) 1171 | -10/Materials | Core integrity fell below 50% 1203 | -10/Materials | Core integrity fell below 20% 1231 | -10/Materials | Lost 5 parts (1p2n2w) 1233 | -10/Materials | Destroyed by G-47 Trooper with Particle Gun Last Messages --------------- W-16 Scout sends out distress signal. W-16 Scout destroyed. Switching to secondary target: G-34 Mercenary. K-01 Serf collects debris. R-06 Scavenger collects Visual Processing Unit. K-01 Serf collects debris. R-06 Scavenger collects Signal Interpreter. R-06 Scavenger collects Hover Unit. G-34 Mercenary destroyed. K-01 Serf collects debris. R-06 Scavenger collects Sensor Array. K-01 Serf collects debris. Acquired 25 matter. Acquired 30 matter. Critical hit (Burn: +37). Lgt. Treads destroyed. Lgt. Assault Rifle destroyed. Lgt. Ion Engine destroyed. Lgt. Treads destroyed. K-01 Serf cleans the Fusion Modulator. Map ----- +----------------------------------------------------+ | ?????# #??# ####?????????# # | | ?????# #??# !##????????## ## | | ?????# ########??# !#?????????# #####+ | | ?????# ##??????### !#?????????# ^ #??# | | ?????# # ????# #?????????# #??# " | | ?????# #!! = ??# !#????????## #### " | | ?????# #!! # !##????????# "# " | | ?????# #! + ####?????????# ""# | | ?????# # # #????????????# ||### | | ?????# # ??# #????????????# < ""## | | ?????# ######### #????????????# !!## | | ?????# #????????????# ""?# | | ?????# < #????????????# "?# | | ?????# #????????????## ###?# | | ?????### ####################????# ##### | | ???????#^ #??### ! | ###### | | ???????# #??#"" + | | ???????# #??#"T | """ """ ###### | | ???????# #??#"" """ """ #????# | | ???????# #??### "T" """ """ #????########## | | ???????# #????# #??????????# | | ???????# #????#######+#######??????????# "" | | ???????# #????# # #??????????????#""" | | ???????# #????# "" # #??????????????#""" | | ???????# ###### T" g #??????????????#""" | | ???????+ o # ""@# #??????????????# "" | | ???????# # # #??????????????# | | ???????# ##?# ###### #??????????????# | | ???????? ???# ###### #??????????????#### | | ????????"???# ###+#########?????? | | ???????? ???# ????? | | ????????????# ????? | | ????????????# ????? | | ????????????# ####+##?????? | | ????????????# #???????????? | | ????????????# +???????????? | | ????????????# #######???????????? | | ??????????? + ########+##?????????????????? | | ?????????? # #???????? ?????????????????? | | ?????????##?# #????????? ????????????????? | | ???????????? #??????????"????????????????? | | ??????????? ???????????????????????????? | | ??????????######???????????????????????????? | | ???????????????????????????????????????????? | | ???????????????????????????????????????????? | | ???????????????????????????????????????????? | | ???????????????????????????????????????????? | | | | | | | +----------------------------------------------------+ Best States ------------- Heat Dissipation 25 Energy Generation 10 Energy Capacity 250 Matter Stores 300 Matter Capacity 300 Sight Range 18 Terrain Scan Density 10 Evasion (%) 42 Recoil Reduction 2 Item Schematics ----------------- None Robot Schematics ------------------ None Fabricated ------------ Nothing Alien Tech Used ----------------- None Achievements -------------- None Challenges ------------ None Game ------ Seed SubdwellerSmallMantle Manual? 0 Play Time 00:12:13 Cumulative 36.8 hours Start 2024.09.28 @ 14:21:36 End 2024.09.28 @ 17:48:31 Sessions 2 Manual Loads 0 Difficulty Rogue Special Mode None Game No. 45 Rogue 45 Adventurer 0 Explorer 0 Win Type - Total 0 Types 0/0/0/0/0/0/0/0/0 Lore% 22 Gallery% 36 Achievement% 33 Wizard Run 0 Options --------- Layout 0 ASCII 0 Keyboard 0 Movement Arrows Keybinds 0 Fullscreen 1 Font 18/SmallcapsGlow Map View 76x50 Zoom Use 0% Tactical HUD 0 Map Filters NONE Filters NONE Steam 0 RUN: 9892a970-43b8-4904-bc0d-b439762819f4